lending/lending_fUSD_20240603
["ID","MTS","AMOUNT","RATE_DAILY","PERIOD"]
[328464873,1717420244480,-500.0,0.00031231,4]
[328464874,1717420244489,-553.68,0.00031231,4]
[328464875,1717420244499,-201.86149007,0.00031231,4]
[328464876,1717420244511,-298.13850993,0.00031231,4]
[328464877,1717420244520,-500.0,0.00031231,4]
[328464878,1717420244529,-464.34709538,0.00031231,4]
[328464879,1717420244541,-35.65290462,0.00031231,4]
[328464880,1717420244550,-500.0,0.00031231,4]
[328464881,1717420244560,-422.8920954,0.00031231,4]
[328464882,1717420244692,-77.1079046,0.00031231,4]
[328464883,1717420244702,-592.68,0.00031231,4]
[328464884,1717420244711,-500.0,0.00031231,4]
[328464885,1717420244722,-500.0,0.00031231,4]
[328464886,1717420244731,-500.0,0.00031231,4]
[328464887,1717420244741,-500.0,0.00031231,4]
[328464888,1717420244750,-500.0,0.00031231,4]
[328464889,1717420244760,-500.0,0.00031231,4]
[328464890,1717420244770,-500.0,0.00031231,4]
[328464891,1717420244779,-3.88139827,0.00031231,4]
[328464892,1717420244790,-496.11860173,0.00031231,4]
[328464893,1717420244800,-4236.84,0.00031231,4]
[328464894,1717420244810,-500.0,0.00031231,4]
[328464895,1717420244819,-500.0,0.00031231,4]
[328464896,1717420244829,-500.0,0.00031231,4]
[328464897,1717420244837,-500.0,0.00031231,4]
[328464898,1717420244846,-500.0,0.00031231,4]
[328464899,1717420244858,-500.0,0.00031231,4]
[328464900,1717420244867,-500.0,0.00031231,4]
[328464901,1717420244876,-500.0,0.00031231,4]
[328464902,1717420244886,-513.54490232,0.00031231,4]
[328464903,1717420244896,-582.52223834,0.00031231,4]
[328464904,1717420244905,-512.94298201,0.00031231,4]
[328464905,1717420244914,-500.0,0.00031231,4]
[328464906,1717420244923,-513.4263542,0.00031231,4]
[328464907,1717420244933,-500.0,0.00031231,4]
[328464908,1717420244942,-500.0,0.00031231,4]
[328464909,1717420244951,-1329.74,0.00031231,4]
[328464910,1717420244960,-500.0,0.00031231,4]
[328464911,1717420244969,-358.759777,0.00031231,4]
[328464912,1717420244978,-500.0,0.00031231,4]
[328464913,1717420244987,-500.0,0.00031232,4]
[328464914,1717420244996,-500.0,0.00031232,4]
[328464915,1717420245006,-500.0,0.00031232,4]
[328464916,1717420245015,-500.0,0.00031232,4]
[328464917,1717420245024,-328.49956123,0.00031406,2]
[328464918,1717420245034,-306.4271369,0.00031437,2]
[328464919,1717420245043,-226.31810263,0.00031455,15]
[328464920,1717420245052,-1217.50451225,0.00031455,15]
[328464921,1717420245062,-1006.84,0.000315,2]
[328464922,1717420245071,-306.9,0.000315,2]
[328464923,1717420245080,-155.65242469,0.00031504,7]
[328464924,1717420245089,-500.0,0.00031504,4]
[328464925,1717420245098,-500.0,0.00031504,4]
[328464926,1717420245107,-500.0,0.00031504,4]
[328464927,1717420245116,-500.0,0.00031504,4]
[328464928,1717420245125,-500.0,0.00031504,4]
[328464929,1717420245135,-523.41,0.00031504,4]
[328464930,1717420245144,-500.0,0.00031504,4]
[328464931,1717420245153,-383.5034067,0.00031504,4]
[328464932,1717420245171,-500.0,0.00030956,4]
[328464933,1717420245180,-192.43249975,0.00031504,4]
[328464934,1717420245191,-1154.12409355,0.00031504,4]
[328464935,1717420245200,-500.0,0.00031504,4]
[328464936,1717420245209,-500.0,0.00031504,4]
[328464937,1717420245218,-500.0,0.00031504,4]
[328464938,1717420245227,-47.75621745,0.00031505,4]
[328464939,1717420245238,-452.24378255,0.00031505,4]
[328464940,1717420245248,-500.0,0.00031505,4]
[328464941,1717420245257,-500.0,0.00031505,4]
[328464942,1717420245266,-466.20621744,0.00031505,4]
[328464943,1717420245278,-33.79378256,0.00031505,4]
[328464944,1717420245287,-601.5,0.00031505,4]
[328464945,1717420245297,-229.10282646,0.00031505,4]
[328464946,1717420245307,-54.56970138,0.00031505,4]
[328464947,1717420245373,-445.43029862,0.00031505,4]
[328464948,1717420245382,-500.0,0.00031505,4]
[328464949,1717420245391,-547.05424841,0.00031505,4]
[328464950,1717420245401,-500.0,0.00031505,4]
[328464951,1717420245410,-500.0,0.00031505,4]
[328464952,1717420245419,-500.0,0.00031505,4]
[328464953,1717420245428,-500.0,0.00031505,4]
[328464954,1717420245437,-500.0,0.00031505,4]
[328464955,1717420245446,-500.0,0.00031505,4]
[328464956,1717420245454,-500.0,0.00031505,4]
[328464957,1717420245463,-500.0,0.00031505,4]
[328464958,1717420245472,-500.0,0.00031505,4]
[328464959,1717420245481,-500.0,0.00031505,4]
[328464960,1717420245490,-500.0,0.00031505,4]
[328464961,1717420245499,-500.0,0.00031505,4]
[328464962,1717420245508,-500.0,0.00031505,4]
[328464963,1717420245517,-500.0,0.00031505,4]
[328464964,1717420245527,-500.0,0.00031505,4]
[328464965,1717420245536,-500.0,0.00031505,4]
[328464966,1717420245545,-500.0,0.00031505,4]
[328464967,1717420245554,-481.62185297,0.00031505,4]
[328464968,1717420245566,-18.37814703,0.00031505,4]
[328464969,1717420245575,-333.43504827,0.00031505,4]
[328464970,1717420245587,-166.56495173,0.00031505,4]
[328464971,1717420245596,-500.0,0.00031505,4]
[328464972,1717420245605,-500.0,0.00031505,4]
[328464973,1717420245615,-34.36207523,0.00031505,4]
[328464980,1717420245973,-500.0,0.00030683,4]
[328464981,1717420245983,-500.0,0.00030683,4]
[328464982,1717420245991,-500.0,0.00030956,4]
[328464983,1717420246000,-500.0,0.00030957,4]
[328464984,1717420246009,-211.51408199,0.00030957,4]
[328464986,1717420246019,-465.63792477,0.00031505,4]
[328464988,1717420246028,-500.0,0.00031505,4]
[328464989,1717420246037,-500.0,0.00031505,4]
[328464990,1717420246046,-500.0,0.00031505,4]
[328464991,1717420246055,-500.0,0.00031505,4]
[328464992,1717420246064,-500.0,0.00031505,4]
[328464993,1717420246073,-500.0,0.00031505,4]
[328464994,1717420246082,-500.0,0.00031505,4]
[328464995,1717420246091,-535.84,0.00031505,4]
[328464996,1717420246100,-500.0,0.00031505,4]
[328464997,1717420246109,-500.0,0.00031505,4]
[328464998,1717420246117,-500.0,0.00031505,4]
[328464999,1717420246126,-1622.99,0.00031505,4]
[328465000,1717420246135,-500.0,0.00031505,4]
[328465001,1717420246144,-500.0,0.00031505,4]
[328465002,1717420246154,-500.0,0.00031505,4]
[328465003,1717420246163,-500.0,0.00031505,4]
[328465004,1717420246171,-500.0,0.00031505,4]
[328465005,1717420246181,-500.0,0.00031505,4]
[328465006,1717420246190,-500.0,0.00031505,4]
[328465007,1717420246199,-500.0,0.00031505,4]
[328465008,1717420246208,-500.0,0.00031505,4]
[328465009,1717420246216,-764.7,0.00031505,4]
[328465010,1717420246225,-500.0,0.00031505,4]
[328465011,1717420246234,-500.0,0.00031505,4]
[328465012,1717420246243,-553.68,0.00031505,4]
[328465013,1717420246252,-500.0,0.00031505,4]
[328465014,1717420246261,-500.0,0.00031505,4]
[328465015,1717420246270,-500.0,0.00031505,4]
[328465016,1717420246279,-592.68,0.00031505,4]
[328465017,1717420246290,-500.0,0.00031505,4]
[328465018,1717420246300,-298.56,0.00031505,4]
[328465019,1717420246310,-500.0,0.00031505,4]
[328465020,1717420246319,-246.2727548,0.00031505,4]
[328465021,1717420246328,-500.0,0.00031505,4]
[328465022,1717420246337,-500.0,0.00031505,4]
[328465023,1717420246346,-1344.27050666,0.00031505,4]
[328465029,1717420246844,-2892.56949334,0.00031505,4]
[328465030,1717420246855,-133.63918106,0.00031505,4]
[328465032,1717420246867,-170.3945084,0.00031505,4]
[328465034,1717420246877,-500.0,0.00031505,4]
[328465035,1717420246886,-568.86,0.00031505,4]
[328465036,1717420246895,-213.89,0.00031505,4]
[328465037,1717420246909,-500.0,0.00031505,4]
[328465038,1717420246920,-500.0,0.00031505,4]
[328465039,1717420246929,-500.0,0.00031505,4]
[328465040,1717420246938,-1329.74,0.00031505,4]
[328465041,1717420246947,-500.0,0.00031506,4]
[328465042,1717420246955,-500.0,0.00031506,4]
[328465043,1717420246964,-500.0,0.00031506,4]
[328465044,1717420246973,-452.36134895,0.00031506,4]
[328465045,1717420246982,-488.23,0.00031725,2]
[328465046,1717420246991,-226.31810263,0.00031746,15]
[328465047,1717420247000,-1217.50451225,0.00031746,15]
[328465048,1717420247009,-547.61,0.00031778,4]
[328465049,1717420247019,-500.0,0.00031778,4]
[328465050,1717420247028,-501.8,0.00031778,4]
[328465051,1717420247037,-507.22,0.00031778,4]
[328465052,1717420247046,-500.0,0.00031778,4]
[328465053,1717420247056,-523.41,0.00031778,4]
[328465054,1717420247064,-438.84768449,0.00031778,4]
[328465055,1717420247074,-1730.06,0.00031778,4]
[328465056,1717420247084,-500.0,0.00031778,4]
[328465057,1717420247224,-66.07867267,0.00031778,4]
[328465058,1717420247512,-433.92132733,0.00031778,4]
[328465059,1717420247522,-500.0,0.00031778,4]
[328465060,1717420247532,-225.19816696,0.00031779,4]
[328465061,1717420247542,-500.0,0.00031779,4]
[328465062,1717420247552,-236.75,0.00031779,4]
[328465063,1717420247561,-500.0,0.00031779,4]
[328465064,1717420247570,-500.0,0.00031779,4]
[328465065,1717420247580,-498.74875,0.00031779,4]
[328465066,1717420247589,-500.0,0.00031779,4]
[328465067,1717420247598,-500.0,0.00031779,4]
[328465068,1717420247607,-500.0,0.00031779,4]
[328465069,1717420247616,-500.0,0.00031779,4]
[328465070,1717420247625,-500.0,0.00031779,4]
[328465071,1717420247635,-500.0,0.00031779,4]
[328465072,1717420247644,-500.0,0.00031779,4]
[328465073,1717420247654,-90.54101662,0.00031779,4]
[328465074,1717420247665,-409.45898338,0.00031779,4]
[328465075,1717420247675,-374.70131306,0.00031779,4]
[328465076,1717420247687,-500.0,0.00031779,4]
[328465077,1717420247696,-500.0,0.00031779,4]
[328465078,1717420247705,-500.0,0.00031779,4]
[328465079,1717420247715,-500.0,0.00031779,4]
[328465080,1717420247725,-500.0,0.00031779,4]
[328465081,1717420247735,-500.0,0.00031779,4]
[328465082,1717420247745,-276.30967053,0.00031779,4]
[328465083,1717420247755,-500.0,0.00031779,4]
[328465084,1717420247767,-500.0,0.00031779,4]
[328465085,1717420247778,-385.38803783,0.00031779,4]
[328465095,1717420384997,3015.52277057,0.00017259,2]
[328465096,1717420393605,7534.4655871,0.00017259,2]
[328465097,1717420404768,1066.49445789,0.00017259,2]
[328465098,1717420418195,155.0,0.00017259,2]
[328465100,1717420595725,155.0,0.00017259,2]
[328465101,1717420597226,155.0,0.00017259,2]
[328465102,1717420597873,155.0,0.00017259,2]
[328465103,1717420602731,365.09781292,0.00017259,2]
[328465104,1717420604572,1762.91775327,0.00017259,2]
[328465105,1717420605692,155.0,0.00017259,2]
[328465106,1717420631048,1384.25618072,0.00017259,2]
[328465107,1717420635081,1399.49998239,0.00017259,2]
[328465110,1717420758761,943.1579135,0.00031,32]
[328465111,1717420864920,3015.52277057,0.00019451,2]
[328465144,1717421432211,-156.46,0.00024384,2]
[328465145,1717421432221,-153.0,0.00024384,2]
[328465146,1717421432230,-1144.0,0.000259,3]
[328465147,1717421432240,-455.65,0.00027239,2]
[328465148,1717421432249,-250.0,0.00029094,2]
[328465149,1717421432258,-1245.82158304,0.00029122,2]
[328465150,1717421432268,-444.97796588,0.00029123,2]
[328465151,1717421432277,-800.6996288,0.00029124,2]
[328465152,1717421432289,-199.3003712,0.00029124,2]
[328465153,1717421432299,-365.9204397,0.00029124,2]
[328465154,1717421432310,-451.63886766,0.00029124,2]
[328465155,1717421432322,-1203.63841064,0.00029124,2]
[328465156,1717421432333,-3967.40597384,0.00029124,2]
[328465157,1717421432348,-7192.21630816,0.00029124,2]
[328465158,1717421432358,-499.99,0.00029124,2]
[328465159,1717421432367,-749.07,0.00029166,2]
[328465160,1717421432376,-157.37,0.00029288,2]
[328465161,1717421432385,-178.9597924,0.00029434,2]
[328465162,1717421432396,-322.58743443,0.00029503,2]
[328465163,1717421432408,-133.06256557,0.00029503,2]
[328465164,1717421432418,-157.37,0.00029669,2]
[328465165,1717421432427,-340.93643712,0.00029879,2]
[328465166,1717421432439,-561.10801134,0.00029879,2]
[328465167,1717421432458,-1728.0087192,0.00029879,2]
[328465168,1717421432488,-263.47322908,0.00029879,2]
[328465169,1717421432499,-615.77052,0.00029879,2]
[328465170,1717421432511,-1573.38108326,0.00029879,2]
[328465171,1717421432520,-161.65578761,0.00029888,2]
[328465172,1717421432530,-627.38555527,0.00029888,2]
[328465173,1717421432539,-233.8,0.00029976,10]
[328465174,1717421432549,-1009.49307208,0.00029979,2]
[328465175,1717421432558,-10317.87738596,0.00029986,2]
[328465229,1717421438320,-1242.49024333,0.00029986,2]
[328465230,1717421438332,-114366.54720145,0.00029986,2]
[328465231,1717421438342,-150.99,0.00029988,2]
[328465232,1717421438351,-156.04351818,0.00029988,2]
[328465233,1717421438362,-351.52920065,0.0003,4]
[328465234,1717421438372,-157.37,0.00030051,2]
[328465235,1717421438381,-154.70622788,0.00030066,7]
[328465236,1717421438390,-1096.99,0.00030073,2]
[328465237,1717421438400,-1096.99,0.00030081,2]
[328465238,1717421438410,-1096.99,0.00030088,2]
[328465239,1717421438420,-1096.99,0.00030096,2]
[328465240,1717421438430,-1096.99,0.00030104,2]
[328465241,1717421438440,-1096.99,0.00030112,2]
[328465242,1717421438449,-1096.99,0.0003012,2]
[328465243,1717421438459,-1096.99,0.00030128,2]
[328465244,1717421438469,-1096.99,0.00030136,2]
[328465245,1717421438479,-1096.99,0.00030144,2]
[328465246,1717421438489,-1096.99,0.00030152,2]
[328465247,1717421438499,-1096.99,0.0003016,2]
[328465248,1717421438509,-1096.99,0.00030168,2]
[328465249,1717421438519,-1096.99,0.00030176,2]
[328465250,1717421438528,-1096.99,0.00030183,2]
[328465251,1717421438537,-1096.99,0.00030191,2]
[328465252,1717421438546,-1096.99,0.00030199,2]
[328465253,1717421438556,-238.22002314,0.00030206,4]
[328465254,1717421438565,-1096.99,0.00030207,2]
[328465255,1717421438575,-1096.99,0.00030215,2]
[328465256,1717421438585,-1096.99,0.00030223,2]
[328465257,1717421438595,-627.38555518,0.00030256,15]
[328465258,1717421438605,-157.37,0.00030432,2]
[328465259,1717421438616,-161.65578759,0.0003044,15]
[328465260,1717421438626,-500.0,0.00030583,2]
[328465261,1717421438635,-627.38555518,0.00030624,15]
[328465262,1717421438644,-528.32660324,0.00030683,4]
[328465263,1717421438654,-500.0,0.00030683,4]
[328465264,1717421438664,-500.0,0.00030683,4]
[328465265,1717421438674,-500.0,0.00030683,4]
[328465266,1717421438688,-500.0,0.00030683,4]
[328465267,1717421438699,-510.89922844,0.00030683,4]
[328465268,1717421438710,-506.72527072,0.00030683,4]
[328465269,1717421438720,-500.0,0.00030683,4]
[328465270,1717421438730,-500.0,0.00030683,4]
[328465271,1717421438740,-500.0,0.00030683,4]
[328465273,1717421438750,-500.0,0.00030683,4]
[328465275,1717421438760,-500.0,0.00030683,4]
[328465277,1717421438770,-500.0,0.00030683,4]
[328465279,1717421438779,-500.0,0.00030683,4]
[328465280,1717421438789,-507.24438166,0.00030683,4]
[328465282,1717421438799,-500.0,0.00030683,4]
[328465285,1717421438810,-500.0,0.00030683,4]
[328465286,1717421438820,-510.50921693,0.00030683,4]
[328465289,1717421438830,-509.41641288,0.00030683,4]
[328465309,1717421439017,-516.20203867,0.00030683,4]
[328465311,1717421439027,-500.0,0.00030683,4]
[328465313,1717421439037,-500.0,0.00030683,4]
[328465315,1717421439047,-500.84793639,0.00030683,4]
[328465317,1717421439057,-500.0,0.00030683,4]
[328465319,1717421439068,-506.9071427,0.00030683,4]
[328465321,1717421439080,-500.0,0.00030683,4]
[328465323,1717421439091,-511.03458198,0.00030683,4]
[328465325,1717421439101,-229.20174801,0.00030683,4]
[328465327,1717421439113,-505.93333392,0.00030683,4]
[328465329,1717421439123,-514.1455354,0.00030683,4]
[328465331,1717421439133,-507.49769414,0.00030683,4]
[328465333,1717421439143,-500.0,0.00030683,4]
[328465335,1717421439156,-522.43679107,0.00030683,4]
[328465337,1717421439167,-500.0,0.00030683,4]
[328465339,1717421439177,-157.37,0.00030814,2]
[328465341,1717421439187,-500.0,0.00030956,4]
[328465343,1717421439198,-500.0,0.00030956,4]
[328465345,1717421439208,-589.6,0.00030956,4]
[328465347,1717421439218,-500.0,0.00030956,4]
[328465349,1717421439227,-500.0,0.00030956,4]
[328465351,1717421439237,-500.0,0.00030956,4]
[328465353,1717421439247,-500.0,0.00030956,4]
[328465355,1717421439258,-500.0,0.00030956,4]
[328465357,1717421439268,-500.0,0.00030956,4]
[328465359,1717421439278,-500.0,0.00030956,4]
[328465361,1717421439287,-1012.16,0.00030956,4]
[328465363,1717421439297,-1354.73,0.00030956,4]
[328465365,1717421439307,-500.0,0.00030956,4]
[328465367,1717421439317,-500.0,0.00030956,4]
[328465369,1717421439327,-500.0,0.00030956,4]
[328465371,1717421439337,-408.56,0.00030956,4]
[328465373,1717421439346,-500.0,0.00030956,4]
[328465375,1717421439356,-1441.82,0.00030956,4]
[328465377,1717421439369,-479.22400547,0.00030956,4]
[328465379,1717421439378,-500.0,0.00030956,4]
[328465381,1717421439388,-500.0,0.00030956,4]
[328465383,1717421439398,-500.0,0.00030956,4]
[328465385,1717421439408,-500.0,0.00030956,4]
[328465387,1717421439418,-500.0,0.00030956,4]
[328465389,1717421439428,-500.0,0.00030956,4]
[328465391,1717421439438,-500.0,0.00030956,4]
[328465393,1717421439447,-384.51319203,0.00030956,4]
[328465395,1717421439457,-500.0,0.00030956,4]
[328465397,1717421439467,-500.0,0.00030956,4]
[328465399,1717421439478,-500.0,0.00030956,4]
[328465401,1717421439487,-500.0,0.00030956,4]
[328465403,1717421439497,-500.0,0.00030956,4]
[328465405,1717421439507,-273.22,0.00030956,4]
[328465407,1717421439517,-500.0,0.00030956,4]
[328465409,1717421439527,-427.81,0.00030956,4]
[328465411,1717421439537,-500.0,0.00030956,4]
[328465413,1717421439546,-500.0,0.00030956,4]
[328465415,1717421439556,-958.52,0.00030956,4]
[328465417,1717421439566,-500.0,0.00030956,4]
[328465419,1717421439577,-500.0,0.00030956,4]
[328465421,1717421439586,-500.0,0.00030956,4]
[328465423,1717421439596,-500.0,0.00030956,4]
[328465425,1717421439606,-691.48,0.00030956,4]
[328465427,1717421439620,-500.0,0.00030956,4]
[328465429,1717421439630,-779.08,0.00030956,4]
[328465431,1717421439640,-500.0,0.00030956,4]
[328465433,1717421439649,-4632.86,0.00030956,4]
[328465435,1717421439662,-4039.25,0.00030956,4]
[328465437,1717421439672,-500.0,0.00030956,4]
[328465439,1717421439682,-500.0,0.00030956,4]
[328465441,1717421439691,-500.0,0.00030956,4]
[328465443,1717421439701,-500.0,0.00030956,4]
[328465444,1717421439711,-500.0,0.00030956,4]
[328465446,1717421439720,-699.41,0.00030956,4]
[328465448,1717421439729,-500.0,0.00030956,4]
[328465450,1717421439739,-500.0,0.00030956,4]
[328465451,1717421439748,-500.0,0.00030956,4]
[328465453,1717421439759,-500.0,0.00030956,4]
[328465455,1717421439769,-506.1565305,0.00030956,4]
[328465457,1717421439778,-1225.96,0.00030956,4]
[328465459,1717421439787,-500.0,0.00030957,4]
[328465461,1717421439797,-500.0,0.00030957,4]
[328465462,1717421439807,-500.0,0.00030957,4]
[328465464,1717421439816,-500.0,0.00030957,4]
[328465466,1717421439827,-350.0,0.00030957,4]
[328465468,1717421439836,-500.0,0.00030957,4]
[328465470,1717421439845,-500.0,0.00030957,4]
[328465472,1717421439855,-500.0,0.00030957,4]
[328465473,1717421439868,-505.27829417,0.00030957,4]
[328465475,1717421439878,-500.0,0.00030957,4]
[328465477,1717421439888,-161.65578759,0.00030992,15]
[328465479,1717421439898,-627.38555518,0.00030992,15]
[328465481,1717421439908,-500.0,0.00030999,4]
[328465483,1717421439919,-411.24010273,0.00030999,4]
[328465484,1717421439930,-500.0,0.00030999,4]
[328465486,1717421439941,-500.0,0.00030999,4]
[328465488,1717421439951,-500.0,0.00030999,4]
[328465490,1717421439961,-500.0,0.00030999,4]
[328465492,1717421439972,-500.0,0.00030999,4]
[328465493,1717421439983,-500.0,0.00030999,4]
[328465495,1717421439992,-500.0,0.00030999,4]
[328465497,1717421440002,-500.0,0.00030999,4]
[328465499,1717421440013,-500.0,0.00030999,4]
[328465501,1717421440024,-508.20525946,0.00030999,4]
[328465503,1717421440034,-250.0,0.00031,2]
[328465504,1717421440043,-762.19642289,0.00031,4]
[328465506,1717421440087,-831.2923378,0.00031,4]
[328465507,1717421440098,-154.70622788,0.00031096,7]
[328465508,1717421440110,-413.71404665,0.00031129,2]
[328465509,1717421440124,-223.96076559,0.0003113,2]
[328465510,1717421440134,-155.5729,0.0003113,2]
[328465511,1717421440143,-500.0,0.00031229,4]
[328465512,1717421440155,-500.0,0.00031229,4]
[328465513,1717421440165,-500.0,0.00031229,4]
[328465514,1717421440174,-500.0,0.00031229,4]
[328465515,1717421440184,-500.0,0.00031229,4]
[328465516,1717421440194,-500.0,0.00031229,4]
[328465517,1717421440203,-500.0,0.00031229,4]
[328465518,1717421440213,-555.00264691,0.00031229,4]
[328465519,1717421440223,-500.0,0.00031229,4]
[328465520,1717421440233,-500.0,0.00031229,4]
[328465521,1717421440243,-500.0,0.00031229,4]
[328465522,1717421440253,-500.0,0.00031229,4]
[328465523,1717421440263,-500.0,0.00031229,4]
[328465524,1717421440272,-500.0,0.00031229,4]
[328465525,1717421440282,-500.0,0.00031229,4]
[328465526,1717421440291,-500.0,0.00031229,4]
[328465527,1717421440301,-499.7997,0.00031229,4]
[328465528,1717421440311,-278.71912147,0.00031229,4]
[328465529,1717421440320,-500.0,0.00031229,4]
[328465530,1717421440329,-500.0,0.00031229,4]
[328465531,1717421440339,-500.0,0.00031229,4]
[328465532,1717421440348,-500.0,0.00031229,4]
[328465533,1717421440358,-500.0,0.00031229,4]
[328465534,1717421440370,-500.0,0.00031229,4]
[328465535,1717421440379,-500.0,0.00031229,4]
[328465536,1717421440389,-272.0090616,0.00031229,4]
[328465537,1717421440399,-518.65340929,0.00031229,4]
[328465538,1717421440408,-518.9028896,0.00031229,4]
[328465539,1717421440418,-826.53,0.00031229,4]
[328465540,1717421440427,-954.32,0.00031229,4]
[328465541,1717421440437,-511.6357899,0.00031229,4]
[328465542,1717421440448,-500.0,0.00031229,4]
[328465543,1717421440458,-500.0,0.00031229,4]
[328465544,1717421440468,-500.0,0.00031229,4]
[328465545,1717421440478,-500.0,0.00031229,4]
[328465546,1717421440488,-500.0,0.00031229,4]
[328465547,1717421440497,-500.0,0.00031229,4]
[328465548,1717421440507,-500.0,0.00031229,4]
[328465549,1717421440516,-917.3,0.00031229,4]
[328465550,1717421440526,-500.0,0.00031229,4]
[328465551,1717421440535,-500.0,0.00031229,4]
[328465552,1717421440545,-642.99,0.00031229,4]
[328465553,1717421440554,-500.0,0.00031229,4]
[328465554,1717421440564,-500.0,0.00031229,4]
[328465555,1717421440573,-1000.0,0.00031229,4]
[328465556,1717421440583,-500.0,0.00031229,4]
[328465557,1717421440593,-500.0,0.00031229,4]
[328465558,1717421440602,-515.26586425,0.00031229,4]
[328465559,1717421440614,-500.0,0.00031229,4]
[328465560,1717421440623,-500.0,0.00031229,4]
[328465561,1717421440633,-500.0,0.00031229,4]
[328465562,1717421440643,-500.0,0.00031229,4]
[328465563,1717421440652,-514.5626526,0.00031229,4]
[328465564,1717421440662,-500.0,0.00031229,4]
[328465565,1717421440672,-500.0,0.00031229,4]
[328465566,1717421440681,-508.61962163,0.00031229,4]
[328465567,1717421440691,-500.0,0.00031229,4]
[328465568,1717421440701,-518.31691849,0.00031229,4]
[328465569,1717421440710,-291.26205646,0.00031229,4]
[328465570,1717421440723,-208.73794354,0.00031229,4]
[328465571,1717421440733,-500.0,0.00031229,4]
[328465572,1717421440742,-500.0,0.00031229,4]
[328465573,1717421440752,-544.16113566,0.00031229,4]
[328465574,1717421440762,-500.0,0.00031229,4]
[328465575,1717421440772,-500.0,0.00031229,4]
[328465576,1717421440781,-505.96076224,0.00031229,4]
[328465577,1717421440791,-431.35403143,0.00031229,4]
[328465578,1717421440801,-500.0,0.00031229,4]
[328465579,1717421440811,-540.24005529,0.00031229,4]
[328465580,1717421440820,-500.0,0.00031229,4]
[328465581,1717421440830,-530.78662282,0.00031229,4]
[328465582,1717421440840,-501.0363839,0.00031229,4]
[328465583,1717421440850,-187.08,0.00031229,4]
[328465584,1717421440859,-500.0,0.00031229,4]
[328465585,1717421440871,-500.0,0.00031229,4]
[328465586,1717421440880,-242.0,0.00031229,4]
[328465587,1717421440890,-164.52232908,0.00031229,4]
[328465588,1717421440903,-335.47767092,0.00031229,4]
[328465589,1717421440913,-527.09823549,0.00031229,4]
[328465591,1717421440924,-480.38,0.00031229,4]
[328465593,1717421440933,-500.0,0.00031229,4]
[328465595,1717421440943,-500.0,0.00031229,4]
[328465596,1717421440953,-372.84072866,0.00031229,4]
[328465597,1717421440963,-500.0,0.00031229,4]
[328465598,1717421440973,-500.0,0.00031229,4]
[328465599,1717421440983,-500.0,0.00031229,4]
[328465600,1717421440993,-500.0,0.00031229,4]
[328465601,1717421441003,-386.67382068,0.00031229,4]
[328465608,1717421441306,-500.0,0.00030956,4]
[328465609,1717421441316,-11.81449438,0.00030999,4]
[328465610,1717421441327,-488.18550562,0.00030999,4]
[328465611,1717421441337,-365.04,0.00031219,10]
[328465612,1717421441347,-113.32617932,0.00031229,4]
[328465613,1717421441356,-500.0,0.00031229,4]
[328465614,1717421441367,-500.0,0.00031229,4]
[328465615,1717421441377,-500.0,0.00031229,4]
[328465616,1717421441386,-500.0,0.00031229,4]